Departmental Family,Entity,Transaction Number,Payment Date,Name,Expense Area,Supplier,Description,Base Amount
BIS,NMO,NMO001,10/07/2014,Car Hire & Leasing,Certification Services,A2B Radio Cars,Taxis for visitors,312
BIS,NMO,5383,10/07/2014,Website maintenance,Enforcement ,ActiveIS Limited,Maintenance of RoHS website,501.6
BIS,NMO,5384,03/07/2014,Website maintenance,Corporate Services,ActiveIS Limited,Maintennce of NMO website,838.8
BIS,NMO,5391,31/07/2014,IT services,Enforcement ,ActiveIS Limited,Sharepoint consultancy work,1440
BIS,NMO,90373365,24/07/2014,Hospitality,Corporate Services,Amey Community Ltd,Hospitality for meeting ,-18.2
BIS,NMO,90372196,24/07/2014,Hospitality,Certification Services,Amey Community Ltd,Hospitality for meeting ,11.94
BIS,NMO,90372196,24/07/2014,Hospitality,Corporate Services,Amey Community Ltd,Hospitality for meeting ,18.2
BIS,NMO,90372196,24/07/2014,Hospitality,Enforcement ,Amey Community Ltd,Hospitality for meeting ,28.97
BIS,NMO,90366710,01/05/2014,Building service charges,Estates,Amey Community Ltd,Estate repairs and renewals,71.68
BIS,NMO,90372111,18/07/2014,Building construction,Estates,Amey Community Ltd,Estate repairs and renewals,810.73
BIS,NMO,90372199,18/07/2014,Building service charges,Estates,Amey Community Ltd,Car park,813.56
BIS,NMO,90373786,31/07/2014,Building service charges,Estates,Amey Community Ltd,Car park,813.56
BIS,NMO,90373753,31/07/2014,Building construction,Estates,Amey Community Ltd,Estate repairs and renewals,1350.83
BIS,NMO,90373754,31/07/2014,Building construction,Estates,Amey Community Ltd,Estate repairs and renewals,1769.04
BIS,NMO,90372201,18/07/2014,Building service charges,Estates,Amey Community Ltd,Minor works,2130.66
BIS,NMO,90372131,18/07/2014,Building construction,Estates,Amey Community Ltd,Estate repairs and renewals,3036.11
BIS,NMO,90373802,31/07/2014,Plant & machinery,Estates,Amey Community Ltd,Estate repairs and renewals,3484.46
BIS,NMO,90373794,31/07/2014,Building construction,Estates,Amey Community Ltd,Estate repairs and renewals,4007.45
BIS,NMO,90372101,18/07/2014,Building maintenance,Estates,Amey Community Ltd,Estate repairs and renewals,4515.1
BIS,NMO,90372124a,18/07/2014,Building construction,Estates,Amey Community Ltd,Estate repairs and renewals,5914.43
BIS,NMO,90372124b,18/07/2014,Building construction,Estates,Amey Community Ltd,Estate repairs and renewals,5914.44
BIS,NMO,90372127,18/07/2014,Building construction,Estates,Amey Community Ltd,Estate repairs and renewals,5921.96
BIS,NMO,90372105,18/07/2014,Building service charges,Estates,Amey Community Ltd,Estate repairs and renewals,6898.09
BIS,NMO,90372128,18/07/2014,Building construction,Estates,Amey Community Ltd,Estate repairs and renewals,7011.73
BIS,NMO,90372097,10/07/2014,Building construction,Estates,Amey Community Ltd,Estate repairs and renewals,7378.24
BIS,NMO,90372129,18/07/2014,Building service charges,Estates,Amey Community Ltd,Estate repairs and renewals,7663.81
BIS,NMO,90372106,18/07/2014,Building construction,Estates,Amey Community Ltd,Estate repairs and renewals,8052.34
BIS,NMO,90372132,18/07/2014,Building construction,Estates,Amey Community Ltd,Estate repairs and renewals,9085.76
BIS,NMO,90372192,18/07/2014,Building construction,Estates,Amey Community Ltd,Estate repairs and renewals,9610.79
BIS,NMO,90372125,10/07/2014,Building construction,Estates,Amey Community Ltd,Estate repairs and renewals,12408
BIS,NMO,90372200,18/07/2014,Building service charges,Estates,Amey Community Ltd,Security services,13398.65
BIS,NMO,90372104,18/07/2014,Building construction,Estates,Amey Community Ltd,Estate repairs and renewals,13557.65
BIS,NMO,90373787,31/07/2014,Building service charges,Estates,Amey Community Ltd,Security services,13845.27
BIS,NMO,90372189,18/07/2014,Building construction,Estates,Amey Community Ltd,Estate repairs and renewals,18551.58
BIS,NMO,90372133,18/07/2014,Building construction,Estates,Amey Community Ltd,Estate repairs and renewals,19509.71
BIS,NMO,90369050,18/07/2014,Building construction,Estates,Amey Community Ltd,Estate repairs and renewals,21635.51
BIS,NMO,90372130,18/07/2014,Building construction,Estates,Amey Community Ltd,Estate repairs and renewals,22163.6
BIS,NMO,90372198,18/07/2014,Building service charges,Estates,Amey Community Ltd,FM contract,22647.43
BIS,NMO,90373785,31/07/2014,Building service charges,Estates,Amey Community Ltd,FM contract,22647.43
BIS,NMO,90372109,18/07/2014,Building construction,Estates,Amey Community Ltd,Estate repairs and renewals,23811.54
BIS,NMO,90372126,10/07/2014,Building construction,Estates,Amey Community Ltd,Estate repairs and renewals,25085.16
BIS,NMO,90372102,10/07/2014,Building construction,Estates,Amey Community Ltd,Estate repairs and renewals,35912.53
BIS,NMO,90372259,18/07/2014,Building construction,Estates,Amey Community Ltd,Estate repairs and renewals,39417.07
BIS,NMO,90372191,18/07/2014,Building construction,Estates,Amey Community Ltd,Estate repairs and renewals,66273.98
BIS,NMO,90372198,18/07/2014,Building service charges,Estates,Amey Community Ltd,FM contract,324312.64
BIS,NMO,90373785,31/07/2014,Building service charges,Estates,Amey Community Ltd,FM contract,324312.64
BIS,NMO,B18187,24/07/2014,Miscellaneous,Enforcement ,Auto Mobile Valet Limited,Valet of pool cars,87.5
BIS,NMO,28427563,10/07/2014,Stationery,Corporate Services,Banner Business Services Ltd,Stationery,64.35
BIS,NMO,28390698,10/07/2014,Stationery,Corporate Services,Banner Business Services Ltd,Stationery,224.56
BIS,NMO,6053192,31/07/2014,Training ,Enforcement ,Bond Solon Limited,Training course,490
BIS,NMO,6053193,31/07/2014,Training ,Enforcement ,Bond Solon Limited,Training course,490
BIS,NMO,6053194,31/07/2014,Training ,Enforcement ,Bond Solon Limited,Training course,490
BIS,NMO,6053195,31/07/2014,Training ,Enforcement ,Bond Solon Limited,Training course,490
BIS,NMO,6053137,31/07/2014,Training ,Enforcement ,Bond Solon Limited,Training course,490
BIS,NMO,6053138,31/07/2014,Training ,Enforcement ,Bond Solon Limited,Training course,490
BIS,NMO,6053139,31/07/2014,Training ,Enforcement ,Bond Solon Limited,Training course,490
BIS,NMO,6053140,31/07/2014,Training ,Enforcement ,Bond Solon Limited,Training course,490
BIS,NMO,6053141,31/07/2014,Training ,Enforcement ,Bond Solon Limited,Training course,490
BIS,NMO,6053142,31/07/2014,Training ,Enforcement ,Bond Solon Limited,Training course,490
BIS,NMO,6053143,31/07/2014,Training ,Enforcement ,Bond Solon Limited,Training course,490
BIS,NMO,6053144,31/07/2014,Training ,Enforcement ,Bond Solon Limited,Training course,490
BIS,NMO,9302046304,18/07/2014,Stationery,Regulation,Brady Corporation Limited,Thermal labels ,605.81
BIS,NMO,BIML2014/3440,18/07/2014,OIML Certificate reg fees,Certification Services,Bureau International de Metrologie Legale,OIML Certificate registration fees,1388.1
BIS,NMO,X38369,30/05/2014,Training ,Corporate Services,Capita Business Services Ltd,Training course,-26.8
BIS,NMO,X43455,18/07/2014,Training ,Enforcement ,Capita Business Services Ltd,Training course,134
BIS,NMO,X43454,18/07/2014,Training ,Utilities,Capita Business Services Ltd,Training course,134
BIS,NMO,X44484,24/07/2014,Training ,Enforcement ,Capita Business Services Ltd,Training course,259
BIS,NMO,X44485,24/07/2014,Training ,Enforcement ,Capita Business Services Ltd,Training course,259
BIS,NMO,X43931,18/07/2014,Training ,Enforcement ,Capita Business Services Ltd,Training course,345
BIS,NMO,3508,18/07/2014,IT software licences,Certification Services,Centre for iso9000 Ltd,Supply of database system - Qtrly charge,600
BIS,NMO,EST P4,17/06/2014,Consultancy,Estates,Clearbox Ltd,3-D Modelling of various buildings,-16390
BIS,NMO,EST P4,17/06/2014,Consultancy,Estates,Clearbox Ltd,3-D Modelling of various buildings,-3400
BIS,NMO,EST P4,17/06/2014,Consultancy,Estates,Clearbox Ltd,3-D Modelling of various buildings,-2675
BIS,NMO,13120012,10/07/2014,Building Advisors,Estates,Clearbox Ltd,3-D Modelling of various buildings,2700
BIS,NMO,EST P4,17/06/2014,Building Advisors,Estates,Clearbox Ltd,3-D Modelling of various buildings,3210
BIS,NMO,EST P4,17/06/2014,Building Advisors,Estates,Clearbox Ltd,3-D Modelling of various buildings,4080
BIS,NMO,13120004,10/07/2014,Building Advisors,Estates,Clearbox Ltd,3-D Modelling of various buildings,4350
BIS,NMO,EST P4,17/06/2014,Building Advisors,Estates,Clearbox Ltd,3-D Modelling of various buildings,19668
BIS,NMO,9365626,18/07/2014,Gas,Estates,Corona Energy Limited,Gas supply to NMO,-916.57
BIS,NMO,9400652,18/07/2014,Gas,Estates,Corona Energy Limited,Gas supply to NMO,1056.54
BIS,NMO,HSC8078487,24/07/2014,Courier services,Certification Services,Dhl International (Uk) Ltd,Courier services,16
BIS,NMO,PK078118,18/07/2014,Training ,Regulation,DODS,Training course,245
BIS,NMO,PK078118,18/07/2014,Training ,Regulation,DODS,Training course,245
BIS,NMO,PK077368,03/07/2014,Training ,Utilities,DODS,Training course,295
BIS,NMO,699616,18/07/2014,Calibrating equipment ,Certification Services,EGL Tools.com,Equipment for resale,84.1
BIS,NMO,1415-28,18/07/2014,Contractors costs ,Training ,Eminence Grise Consulting Ltd,Training services,2844.56
BIS,NMO,109927,10/07/2014,Calibrating equipment ,Certification Services,Environmental & Technical Services Ltd,Service contract quarterly charge,905.5
BIS,NMO,632551,10/07/2014,Legal Services,Change & Development ,Field Fisher Waterhouse,NPL Project - Legal services,16719.3
BIS,NMO,2475,31/07/2014,IT services,Enforcement ,GovDelivery Inc,Annual hosting /maintenance fee for e-mail system,120
BIS,NMO,2475,31/07/2014,IT services,Enforcement ,GovDelivery Inc,Annual hosting /maintenance fee for e-mail system,480
BIS,NMO,2475,31/07/2014,IT services,Enforcement ,GovDelivery Inc,Annual hosting /maintenance fee for e-mail system,720
BIS,NMO,2475,31/07/2014,IT services,Enforcement ,GovDelivery Inc,Annual hosting /maintenance fee for e-mail system,1080
BIS,NMO,8008,03/07/2014,Calibrating equipment ,Certification Services,H&D Fitzgerald Ltd,Calibration of equipment ,300
BIS,NMO,3610568499,10/07/2014,Contractors costs ,Certification Services,Hampshire County Council,Training services,335
BIS,NMO,2346658269,18/07/2014,Car Hire & Leasing,Enforcement ,Hertz UK Limited,Car hire,36.84
BIS,NMO,2346731167,31/07/2014,Car Hire & Leasing,Certification Services,Hertz UK Limited,Car hire,70.92
BIS,NMO,2346245138,18/07/2014,Car Hire & Leasing,Enforcement ,Hertz UK Limited,Car hire,73.44
BIS,NMO,2346600903,03/07/2014,Car Hire & Leasing,Certification Services,Hertz UK Limited,Car hire,76.08
BIS,NMO,2346635574,18/07/2014,Car Hire & Leasing,Enforcement ,Hertz UK Limited,Car hire,85.08
BIS,NMO,2346202980,31/07/2014,Car Hire & Leasing,Enforcement ,Hertz UK Limited,Car hire,205.91
BIS,NMO,J017263303,10/07/2014,Telecommunications,Corporate Services,Intercity Telecom Ltd,Mobile phone bill,789.13
BIS,NMO,1002995880,09/06/2014,Calibrating equipment ,Certification Services,Intertek Testing&Certification,Lab testing of taxi meters,-2850
BIS,NMO,1002995880,09/06/2014,Laboratory Testing,Certification Services,Intertek Testing&Certification,Lab testing of taxi meters,2850
BIS,NMO,309983,18/07/2014,Hospitality,Corporate Services,Kent & Sussex Vending,Coffee machine supplies,38.34
BIS,NMO,309983,18/07/2014,Hospitality,Corporate Services,Kent & Sussex Vending,Coffee machine supplies,286.39
BIS,NMO,3608146,30/05/2014,Calibrating equipment ,Certification Services,Kent County Council,Calibration of equipment ,-92.8
BIS,NMO,18,31/07/2014,Contractors costs ,Certification Services,Legal Metrology Ltd,Auditing services,589.5
BIS,NMO,14017,03/07/2014,Contractors costs ,Certification Services,LegMetConsult,Auditing services,873.3
BIS,NMO,14023,31/07/2014,Contractors costs ,Certification Services,LegMetConsult,Auditing services,880.53
BIS,NMO,14018,03/07/2014,Contractors costs ,Certification Services,LegMetConsult,Auditing services,941.92
BIS,NMO,50544,18/07/2014,Conferences & Exhibitions,Programmes,Lensbury,Chem Bio conference,3857.86
BIS,NMO,50324347,10/07/2014,NMS Science Programmes,Programmes,LGC Ltd,IRD Programme,109830
BIS,NMO,50324207,10/07/2014,NMS Science Programmes,Programmes,LGC Ltd,Chem Bio Programme,119167
BIS,NMO,50324205,10/07/2014,NMS Science Programmes,Programmes,LGC Ltd,Chem Bio Programme,119583
BIS,NMO,50324204,10/07/2014,NMS Science Programmes,Programmes,LGC Ltd,Chem Bio Programme,128444
BIS,NMO,117369,10/07/2014,Scientific Equipment ,Certification Services,LGG CHARLESWORTH LTD,Taxi meter seals,370.82
BIS,NMO,120956,31/07/2014,Telecommunications,Corporate Services,Maintel Voice & Data Limited,Telephone calls & line rental,1697.9
BIS,NMO,120137,03/07/2014,Telecommunications,Corporate Services,Maintel Voice & Data Limited,Telephone calls & line rental,1820.04
BIS,NMO,401426,03/07/2014,Calibrating equipment ,Certification Services,Mettler-Toledo Ltd,Weights for resale ,39
BIS,NMO,401383,03/07/2014,Calibrating equipment ,Certification Services,Mettler-Toledo Ltd,Weights for resale ,1105
BIS,NMO,55887,03/07/2014,Salaries & Wages Casual,Change & Development ,National Physical Laboratory,Secondment ,4159.62
BIS,NMO,55903,31/07/2014,Electricity,Estates,National Physical Laboratory,Electricity charges,8506.75
BIS,NMO,NS3898,18/07/2014,Calibrating equipment ,Certification Services,Novatron Limited,Calibration of equipment ,390
BIS,NMO,407368,31/07/2014,Contractors costs ,Programmes,Office for Public Management,Contractor's costs ,11830
BIS,NMO,407367,31/07/2014,Contractors costs ,Programmes,Office for Public Management,Contractor's costs ,68793.75
BIS,NMO,O320444,10/07/2014,Contractors costs ,Certification Services,Omega,Contractor's travel costs ,-51
BIS,NMO,O317691,22/05/2014,Contractors costs ,Certification Services,Omega,Contractor's travel costs ,23.95
BIS,NMO,O320423,10/07/2014,Contractors costs ,Certification Services,Omega,Contractor's travel costs ,408.93
BIS,NMO,O320666,10/07/2014,Contractors costs ,Certification Services,Omega,Contractor's travel costs ,467.96
BIS,NMO,266717,10/07/2014,Travel & Subsistence,Certification Services,Parker Cars Ltd,Taxis for staff,68.85
BIS,NMO,266717,10/07/2014,Travel & Subsistence,Enforcement ,Parker Cars Ltd,Taxis for staff,69.32
BIS,NMO,14/5585,18/07/2014,Publications,Programmes,Parliamentary & Scientific Committee,Subscription to scientific publication,20
BIS,NMO,1354212156,10/07/2014,Consultancy,Change & Development ,PRICEWATERHOUSECOOPERS LLP,Project consultancy fees,19776
BIS,NMO,39731,18/07/2014,Computer & Office Additions,Estates,Quay Office Furnishers Ltd,Office Furniture,2464.5
BIS,NMO,SIN014164,18/07/2014,IT services,Corporate Services,Real Asset Management Plc,Data merge service,1500
BIS,NMO,298532,31/07/2014,Calibrating equipment ,Certification Services,Rotronic Instruments (Uk) Ltd,Calibration of equipment ,440
BIS,NMO,88,18/07/2014,Intangible Assets Addition,Certification Services,Russell IT Solutions,Development of new CAMS system,2999.76
BIS,NMO,GBE180173,03/07/2014,Laboratory Testing,Utilities,SGS United Kingdom Ltd,Gas meter dispute testing,32541.72
BIS,NMO,687927,18/07/2014,Laboratory Testing,Enforcement ,Sheffield Assay Office,Battery testing,3801
BIS,NMO,956205,24/07/2014,IT software licences,Corporate Services,Softcat Limited,Microsoft Windows software,514.46
BIS,NMO,981938,24/07/2014,Computer peripherals ,Corporate Services,Softcat Limited,Projector,555.13
BIS,NMO,SI-082849,18/07/2014,Agency literature,Corporate Services,Software Logistics,Design of NMO annual report and accounts,1925
BIS,NMO,1656840,10/07/2014,Courier services,Certification Services,Streetwise Couriers Surrey Ltd,Courier services,8.48
BIS,NMO,1656840,10/07/2014,Courier services,Certification Services,Streetwise Couriers Surrey Ltd,Courier services,8.48
BIS,NMO,1656840,10/07/2014,Courier services,Certification Services,Streetwise Couriers Surrey Ltd,Courier services,80.5
BIS,NMO,1656840,10/07/2014,Courier services,Certification Services,Streetwise Couriers Surrey Ltd,Courier services,80.92
BIS,NMO,1658371,10/07/2014,Courier services,Certification Services,Streetwise Couriers Surrey Ltd,Courier services,85.43
BIS,NMO,19639,03/07/2014,Calibrating equipment ,Certification Services,TESEQ Limited,Calibration of equipment ,1541
BIS,NMO,25/06/2014,09/07/2014,Water,Estates,Thames Water Utilities Ltd,Water bill,2991.49
BIS,NMO,09/07/2014,18/07/2014,Hospitality,Certification Services,The Cavan Bakery,Catering for meeting ,197.4
BIS,NMO,24/06/2014,03/07/2014,Hospitality,Regulation,The Cavan Bakery,Catering for meeting ,573.6
BIS,NMO,407732,18/07/2014,Solicitors Treasury,Corporate Services,The Treasury Solicitor,Treasury Solicitors charges to 30/06/14,697.5
BIS,NMO,994446,18/07/2014,IT services,Corporate Services,Triad Group Plc,Helpdesk & support June 2014,3360
BIS,NMO,1790034317,10/07/2014,NMS Science Programmes,Programmes,TUV SUD NEL Ltd,Engineering & Flow Programme,49750
BIS,NMO,1790034301,10/07/2014,NMS Science Programmes,Programmes,TUV SUD NEL Ltd,Engineering & Flow Programme,75500
BIS,NMO,1790034274,10/07/2014,NMS Science Programmes,Programmes,TUV SUD NEL Ltd,Engineering & Flow Programme,111000
BIS,NMO,1023797,18/07/2014,UKAS accreditation fees,Certification Services,U.K.Accreditation Service,Annual accreditation fee,1230
BIS,NMO,1023797,18/07/2014,UKAS accreditation fees,Certification Services,U.K.Accreditation Service,Annual accreditation fee,1230
BIS,NMO,14050001,18/07/2014,Marketing ,Corporate Services,Williams Lea Publishing,NMO Business cards,42.96
BIS,NMO,14050002,18/07/2014,Marketing ,Certification Services,Williams Lea Publishing,NMO Business cards,304.92
BIS,NMO,14060001,18/07/2014,Marketing ,Enforcement ,Williams Lea Publishing,NMO Business cards,634.79
